[Event "Early-Titled-Tuesday-Blitz-April-02-2024"]
[Site "Chess.com"]
[Date "2024.04.02"]
[Round "6"]
[White "Imagine_Drag0n"]
[Black "yaguigor"]
[Result "0-1"]
[WhiteElo "2790"]
[BlackElo "2647"]
[TimeControl "180+1"]
[EndTime "9:06:33 PDT"]
[Termination "yaguigor won by resignation"]

1. e4 {[%clk 0:03:00.9]} 1... c5 {[%clk 0:02:59.3]} 2. Nf3 {[%clk 0:03:00]} 2...
Nc6 {[%clk 0:02:58.9]} 3. Bb5 {[%clk 0:02:59.4]} 3... g6 {[%clk 0:02:58.7]} 4.
Bxc6 {[%clk 0:02:59.1]} 4... bxc6 {[%clk 0:02:58.4]} 5. d4 {[%clk 0:02:58.6]}
5... cxd4 {[%clk 0:02:56.8]} 6. Qxd4 {[%clk 0:02:58]} 6... f6 {[%clk 0:02:53.9]}
7. O-O {[%clk 0:02:56.4]} 7... d6 {[%clk 0:02:45.4]} 8. c4 {[%clk 0:02:56.2]}
8... c5 {[%clk 0:02:41]} 9. Qd3 {[%clk 0:02:55.9]} 9... Nh6 {[%clk 0:02:40]} 10.
Nc3 {[%clk 0:02:52.4]} 10... Nf7 {[%clk 0:02:39.3]} 11. a3 {[%clk 0:02:35.8]}
11... Bg7 {[%clk 0:02:33.9]} 12. b4 {[%clk 0:02:34.9]} 12... Bg4 {[%clk
0:02:18]} 13. Bf4 {[%clk 0:02:26.3]} 13... g5 {[%clk 0:02:12.2]} 14. Bg3 {[%clk
0:02:21.4]} 14... h5 {[%clk 0:02:07.2]} 15. h3 {[%clk 0:02:19.7]} 15... Be6
{[%clk 0:02:00.3]} 16. Nd5 {[%clk 0:02:05.3]} 16... h4 {[%clk 0:01:55.6]} 17.
Bh2 {[%clk 0:02:03.2]} 17... Rc8 {[%clk 0:01:53.9]} 18. Rad1 {[%clk 0:01:58.3]}
18... g4 {[%clk 0:01:52.3]} 19. hxg4 {[%clk 0:01:57.4]} 19... Bxg4 {[%clk
0:01:53.1]} 20. e5 {[%clk 0:01:20.7]} 20... Bxf3 {[%clk 0:01:34.5]} 21. exf6
{[%clk 0:00:52.6]} 21... Bxd1 {[%clk 0:01:29.3]} 22. fxg7 {[%clk 0:00:50.5]}
22... Rg8 {[%clk 0:01:29.7]} 23. Qh7 {[%clk 0:00:43.3]} 23... Kd7 {[%clk
0:01:28.9]} 24. Qf5+ {[%clk 0:00:43.1]} 24... Ke8 {[%clk 0:01:11.2]} 25. Re1
{[%clk 0:00:36.4]} 25... Rxg7 {[%clk 0:01:08.9]} 26. Nxe7 {[%clk 0:00:23.4]}
26... Kf8 {[%clk 0:00:20.3]} 27. Nxc8 {[%clk 0:00:04.5]} 27... Bg4 {[%clk
0:00:18.6]} 28. Qf4 {[%clk 0:00:02.7]} 28... Bxc8 {[%clk 0:00:18.2]} 29. bxc5
{[%clk 0:00:02.4]} 29... dxc5 {[%clk 0:00:17.3]} 30. Qe4 {[%clk 0:00:02.7]}
30... Ng5 {[%clk 0:00:14.4]} 31. Qe5 {[%clk 0:00:02.5]} 31... Nf3+ {[%clk
0:00:14.2]} 0-1

[Event "Early-Titled-Tuesday-Blitz-April-02-2024"]
[Site "Chess.com"]
[Date "2024.04.02"]
[Round "6"]
[White "Gabcur"]
[Black "xasid81"]
[Result "0-1"]
[WhiteElo "2345"]
[BlackElo "2631"]
[TimeControl "180+1"]
[EndTime "9:06:33 PDT"]
[Termination "xasid81 won by resignation"]

1. e4 {[%clk 0:03:00.9]} 1... a6 {[%clk 0:02:58.3]} 2. d4 {[%clk 0:02:58.7]}
2... h6 {[%clk 0:02:58.5]} 3. g3 {[%clk 0:02:58.7]} 3... b6 {[%clk 0:02:59.1]}
4. Bg2 {[%clk 0:02:58.9]} 4... Bb7 {[%clk 0:02:59.8]} 5. Ne2 {[%clk 0:02:59.2]}
5... g6 {[%clk 0:03:00.4]} 6. O-O {[%clk 0:02:58.7]} 6... Bg7 {[%clk 0:03:01.1]}
7. Nbc3 {[%clk 0:02:59]} 7... d6 {[%clk 0:03:01.4]} 8. Be3 {[%clk 0:02:59.2]}
8... e6 {[%clk 0:03:01.9]} 9. h3 {[%clk 0:02:59.5]} 9... Ne7 {[%clk 0:03:02.3]}
10. Qd2 {[%clk 0:03:00]} 10... Kf8 {[%clk 0:03:02.6]} 11. g4 {[%clk 0:03:00]}
11... Kg8 {[%clk 0:03:03]} 12. Ng3 {[%clk 0:03:00.3]} 12... Nd7 {[%clk
0:03:03.2]} 13. f4 {[%clk 0:03:00.4]} 13... f5 {[%clk 0:02:58.9]} 14. gxf5
{[%clk 0:02:50.7]} 14... exf5 {[%clk 0:02:56.6]} 15. exf5 {[%clk 0:02:44.8]}
15... Bxg2 {[%clk 0:02:57.5]} 16. Qxg2 {[%clk 0:02:44.4]} 16... Nxf5 {[%clk
0:02:36.3]} 17. Nxf5 {[%clk 0:02:42.1]} 17... gxf5 {[%clk 0:02:37.2]} 18. Qd5+
{[%clk 0:02:41.5]} 18... Kf8 {[%clk 0:02:36.4]} 19. Qxf5+ {[%clk 0:02:41.4]}
19... Nf6 {[%clk 0:02:35.3]} 20. Bf2 {[%clk 0:01:52]} 20... Qc8 {[%clk
0:02:27.7]} 21. Qxc8+ {[%clk 0:01:48.9]} 21... Rxc8 {[%clk 0:02:28.6]} 22. Rae1
{[%clk 0:01:44.4]} 22... Kf7 {[%clk 0:02:28.8]} 23. f5 {[%clk 0:01:39.4]} 23...
Rhg8 {[%clk 0:02:26.2]} 24. Kh1 {[%clk 0:01:37.9]} 24... b5 {[%clk 0:02:23.8]}
25. a3 {[%clk 0:01:17.6]} 25... Rce8 {[%clk 0:02:13.1]} 26. d5 {[%clk
0:01:15.8]} 26... Nh5 {[%clk 0:02:07]} 27. Re6 {[%clk 0:01:09.5]} 27... Nf4
{[%clk 0:02:04]} 28. Rfe1 {[%clk 0:01:00.1]} 28... Bxc3 {[%clk 0:02:00.2]} 29.
bxc3 {[%clk 0:00:53]} 29... Nxd5 {[%clk 0:01:59.2]} 30. Rxh6 {[%clk 0:00:51]}
30... Rxe1+ {[%clk 0:01:55.8]} 31. Bxe1 {[%clk 0:00:50.8]} 31... Ne3 {[%clk
0:01:55.6]} 32. Bh4 {[%clk 0:00:44.9]} 32... Kg7 {[%clk 0:01:33.8]} 33. Rg6+
{[%clk 0:00:40.8]} 33... Kh7 {[%clk 0:01:28.9]} 34. Rf6 {[%clk 0:00:33]} 34...
Rg7 {[%clk 0:01:27]} 35. Bf2 {[%clk 0:00:24.3]} 35... Nd5 {[%clk 0:01:23.5]} 36.
Re6 {[%clk 0:00:17]} 36... Rf7 {[%clk 0:01:22.4]} 37. f6 {[%clk 0:00:11.7]}
37... Rxf6 {[%clk 0:01:18.1]} 38. Rxf6 {[%clk 0:00:10]} 38... Nxf6 {[%clk
0:01:19]} 39. Kg2 {[%clk 0:00:09.8]} 39... Ne4 {[%clk 0:01:18.3]} 40. Bd4 {[%clk
0:00:09.3]} 40... c5 {[%clk 0:01:17.8]} 41. Be3 {[%clk 0:00:07.7]} 41... Nxc3
{[%clk 0:01:17.5]} 42. Kf3 {[%clk 0:00:08.1]} 42... a5 {[%clk 0:01:12.9]} 43.
Bf4 {[%clk 0:00:08.2]} 43... d5 {[%clk 0:01:10.6]} 44. Bd6 {[%clk 0:00:08.3]}
44... Ne4 {[%clk 0:01:06.2]} 45. Be7 {[%clk 0:00:06.9]} 45... a4 {[%clk
0:01:01.7]} 46. Ke3 {[%clk 0:00:07]} 46... b4 {[%clk 0:00:54.3]} 47. axb4 {[%clk
0:00:04.2]} 47... a3 {[%clk 0:00:55.2]} 48. Bxc5 {[%clk 0:00:01.5]} 48... Nxc5
{[%clk 0:00:52.6]} 49. bxc5 {[%clk 0:00:02.4]} 49... a2 {[%clk 0:00:53.4]} 50.
c6 {[%clk 0:00:02.7]} 50... a1=Q {[%clk 0:00:54.3]} 51. c7 {[%clk 0:00:03.6]}
51... Qc3+ {[%clk 0:00:54.5]} 0-1

[Event "Early-Titled-Tuesday-Blitz-April-02-2024"]
[Site "Chess.com"]
[Date "2024.04.02"]
[Round "6"]
[White "BashirliSaadat"]
[Black "Dewarfd"]
[Result "1-0"]
[WhiteElo "2359"]
[BlackElo "2109"]
[TimeControl "180+1"]
[EndTime "9:06:33 PDT"]
[Termination "BashirliSaadat won on time"]

1. e4 {[%clk 0:03:00.9]} 1... c5 {[%clk 0:02:59.4]} 2. Nf3 {[%clk 0:03:01.2]}
2... g6 {[%clk 0:02:59.3]} 3. c3 {[%clk 0:02:59]} 3... Bg7 {[%clk 0:02:58.6]} 4.
d4 {[%clk 0:02:58.7]} 4... cxd4 {[%clk 0:02:59.5]} 5. cxd4 {[%clk 0:02:59.3]}
5... d5 {[%clk 0:03:00.1]} 6. e5 {[%clk 0:02:59.6]} 6... Nc6 {[%clk 0:02:59.8]}
7. Nc3 {[%clk 0:03:00]} 7... Nh6 {[%clk 0:02:59.3]} 8. Bd3 {[%clk 0:02:57.2]}
8... Bf5 {[%clk 0:02:53.5]} 9. O-O {[%clk 0:02:54.8]} 9... Bxd3 {[%clk
0:02:52.7]} 10. Qxd3 {[%clk 0:02:54.5]} 10... O-O {[%clk 0:02:52.3]} 11. Qb5
{[%clk 0:02:52.1]} 11... e6 {[%clk 0:02:31.8]} 12. Qxb7 {[%clk 0:02:43.2]} 12...
Na5 {[%clk 0:02:17.5]} 13. Qb4 {[%clk 0:02:43.1]} 13... Rb8 {[%clk 0:02:10.6]}
14. Qa4 {[%clk 0:02:43.1]} 14... Nf5 {[%clk 0:02:09.5]} 15. Bg5 {[%clk
0:02:37.4]} 15... Qb6 {[%clk 0:02:06.4]} 16. Rab1 {[%clk 0:02:29.7]} 16... Rfc8
{[%clk 0:01:56.5]} 17. Qd1 {[%clk 0:02:07.4]} 17... Nc4 {[%clk 0:01:29.8]} 18.
b3 {[%clk 0:02:00]} 18... Na3 {[%clk 0:01:28.1]} 19. Rc1 {[%clk 0:01:58.2]}
19... Nb5 {[%clk 0:01:03.3]} 20. Na4 {[%clk 0:01:50.6]} 20... Rxc1 {[%clk
0:00:53.8]} 21. Qxc1 {[%clk 0:01:43.4]} 21... Qa5 {[%clk 0:00:50.9]} 22. Qc5
{[%clk 0:01:29]} 22... Bf8 {[%clk 0:00:43.4]} 23. Qc2 {[%clk 0:00:54.4]} 23...
Nbxd4 {[%clk 0:00:37.2]} 24. Nxd4 {[%clk 0:00:51.1]} 24... Nxd4 {[%clk
0:00:38.1]} 25. Qd3 {[%clk 0:00:50.8]} 25... Nc6 {[%clk 0:00:28.6]} 26. Qg3
{[%clk 0:00:44.7]} 26... h6 {[%clk 0:00:23.3]} 27. Bf6 {[%clk 0:00:42.5]} 27...
Nd4 {[%clk 0:00:17.4]} 28. Qe3 {[%clk 0:00:23.7]} 28... Nf5 {[%clk 0:00:12.4]}
29. Qd3 {[%clk 0:00:23.8]} 29... Rc8 {[%clk 0:00:09.4]} 30. g4 {[%clk
0:00:20.2]} 30... Ne7 {[%clk 0:00:07.6]} 31. Qe3 {[%clk 0:00:17.5]} 31... Nc6
{[%clk 0:00:05.2]} 32. Rc1 {[%clk 0:00:13.9]} 32... Qb4 {[%clk 0:00:03.6]} 33.
h3 {[%clk 0:00:11.4]} 1-0

[Event "Early-Titled-Tuesday-Blitz-April-02-2024"]
[Site "Chess.com"]
[Date "2024.04.02"]
[Round "6"]
[White "Predo63"]
[Black "Sanyura"]
[Result "1-0"]
[WhiteElo "2534"]
[BlackElo "2606"]
[TimeControl "180+1"]
[EndTime "9:06:34 PDT"]
[Termination "Predo63 won on time"]

1. d4 {[%clk 0:03:00.9]} 1... Nf6 {[%clk 0:02:53.4]} 2. Bg5 {[%clk 0:03:00.2]}
2... g6 {[%clk 0:02:51.4]} 3. Bxf6 {[%clk 0:03:00.4]} 3... exf6 {[%clk
0:02:52.3]} 4. e3 {[%clk 0:03:01]} 4... Bg7 {[%clk 0:02:53]} 5. Nd2 {[%clk
0:03:00.8]} 5... O-O {[%clk 0:02:53.9]} 6. g3 {[%clk 0:03:01.4]} 6... f5 {[%clk
0:02:52.7]} 7. Bg2 {[%clk 0:03:01.7]} 7... Nc6 {[%clk 0:02:48.6]} 8. Ne2 {[%clk
0:03:01.7]} 8... h5 {[%clk 0:02:42.4]} 9. h4 {[%clk 0:02:59.8]} 9... Re8 {[%clk
0:02:41.8]} 10. c3 {[%clk 0:02:59.4]} 10... d6 {[%clk 0:02:36.1]} 11. O-O {[%clk
0:02:59.4]} 11... Bd7 {[%clk 0:02:35.8]} 12. Nf4 {[%clk 0:02:59.7]} 12... a6
{[%clk 0:02:28.4]} 13. a4 {[%clk 0:02:59.1]} 13... b5 {[%clk 0:02:26.5]} 14.
axb5 {[%clk 0:02:57.8]} 14... axb5 {[%clk 0:02:27.4]} 15. Qb3 {[%clk 0:02:56.8]}
15... Na5 {[%clk 0:02:22.2]} 16. Qc2 {[%clk 0:02:49.4]} 16... c6 {[%clk
0:02:20.3]} 17. b4 {[%clk 0:02:40.8]} 17... Nc4 {[%clk 0:02:15.5]} 18. Nxc4
{[%clk 0:02:40.1]} 18... bxc4 {[%clk 0:02:16.4]} 19. Rfe1 {[%clk 0:02:35]} 19...
Rxa1 {[%clk 0:02:14.7]} 20. Rxa1 {[%clk 0:02:34.2]} 20... c5 {[%clk 0:02:15.6]}
21. bxc5 {[%clk 0:02:28.1]} 21... dxc5 {[%clk 0:02:16.5]} 22. Bd5 {[%clk
0:02:12.1]} 22... g5 {[%clk 0:02:06.7]} 23. hxg5 {[%clk 0:02:09.8]} 23... Qxg5
{[%clk 0:02:07.6]} 24. Ra7 {[%clk 0:02:04]} 24... Be6 {[%clk 0:02:00.5]} 25.
Bxe6 {[%clk 0:01:55.8]} 25... fxe6 {[%clk 0:02:01.4]} 26. Qe2 {[%clk 0:01:53.3]}
26... h4 {[%clk 0:01:59.9]} 27. Kg2 {[%clk 0:01:53.1]} 27... hxg3 {[%clk
0:01:59.9]} 28. fxg3 {[%clk 0:01:53.2]} 28... e5 {[%clk 0:01:59.2]} 29. Qxc4+
{[%clk 0:01:50.6]} 29... Kh7 {[%clk 0:01:49.9]} 30. dxe5 {[%clk 0:01:48.2]}
30... Rxe5 {[%clk 0:01:50.8]} 31. Qe2 {[%clk 0:01:40.4]} 31... Re7 {[%clk
0:01:29.3]} 32. Rxe7 {[%clk 0:01:35.7]} 32... Qxe7 {[%clk 0:01:30.2]} 33. Qh5+
{[%clk 0:01:33.4]} 33... Kg8 {[%clk 0:01:24.6]} 34. Qxf5 {[%clk 0:01:33.1]}
34... Qxe3 {[%clk 0:01:22]} 35. Qd5+ {[%clk 0:01:27.2]} 35... Kh7 {[%clk
0:01:20.5]} 36. c4 {[%clk 0:01:27.2]} 36... Bd4 {[%clk 0:01:00.5]} 37. Qf7+
{[%clk 0:01:24.4]} 37... Bg7 {[%clk 0:01:00.3]} 38. Kh3 {[%clk 0:01:22.2]} 38...
Qe5 {[%clk 0:00:15.9]} 39. Qh5+ {[%clk 0:01:16.1]} 39... Qxh5+ {[%clk
0:00:15.7]} 40. Nxh5 {[%clk 0:01:15.9]} 40... Be5 {[%clk 0:00:16.1]} 41. Kg4
{[%clk 0:01:15.2]} 41... Kg6 {[%clk 0:00:15.1]} 42. Nf4+ {[%clk 0:01:15.4]}
42... Kf7 {[%clk 0:00:15.3]} 43. Nd3 {[%clk 0:01:15.1]} 43... Bd6 {[%clk
0:00:14.1]} 44. Nf2 {[%clk 0:01:06.9]} 44... Ke6 {[%clk 0:00:12.7]} 45. Nd3
{[%clk 0:01:06.7]} 45... Kf6 {[%clk 0:00:11.9]} 46. Kf3 {[%clk 0:01:06.9]} 46...
Kf5 {[%clk 0:00:11.9]} 47. g4+ {[%clk 0:01:06.4]} 47... Ke6 {[%clk 0:00:11.5]}
48. Ke4 {[%clk 0:01:06.3]} 48... Be7 {[%clk 0:00:10.4]} 49. Nf4+ {[%clk
0:01:05.9]} 49... Kf7 {[%clk 0:00:09.6]} 50. Kf5 {[%clk 0:01:06]} 50... Bd6
{[%clk 0:00:09.9]} 51. Nd5 {[%clk 0:01:05.5]} 51... Kg7 {[%clk 0:00:07.9]} 52.
g5 {[%clk 0:01:05.7]} 52... Kf7 {[%clk 0:00:08.1]} 53. Nf4 {[%clk 0:01:03.2]}
53... Ke7 {[%clk 0:00:03.5]} 54. Nh5 {[%clk 0:00:58.3]} 1-0

[Event "Early-Titled-Tuesday-Blitz-April-02-2024"]
[Site "Chess.com"]
[Date "2024.04.02"]
[Round "6"]
[White "DanylaBagrov"]
[Black "Zhani-Z"]
[Result "1-0"]
[WhiteElo "2508"]
[BlackElo "2328"]
[TimeControl "180+1"]
[EndTime "9:06:34 PDT"]
[Termination "DanylaBagrov won by resignation"]

1. d4 {[%clk 0:02:55.2]} 1... Nf6 {[%clk 0:02:58.2]} 2. Bf4 {[%clk 0:02:55.1]}
2... e6 {[%clk 0:02:44.7]} 3. e3 {[%clk 0:02:52.7]} 3... d5 {[%clk 0:02:45]} 4.
Nf3 {[%clk 0:02:49.9]} 4... c5 {[%clk 0:02:45.3]} 5. c3 {[%clk 0:02:48.5]} 5...
Bd6 {[%clk 0:02:45.5]} 6. Bg3 {[%clk 0:02:47.3]} 6... Qc7 {[%clk 0:02:39.8]} 7.
Nbd2 {[%clk 0:02:46]} 7... Nbd7 {[%clk 0:02:39.8]} 8. Bd3 {[%clk 0:02:43.4]}
8... O-O {[%clk 0:02:38.4]} 9. O-O {[%clk 0:02:30.1]} 9... Bxg3 {[%clk
0:02:37.7]} 10. hxg3 {[%clk 0:02:18.9]} 10... e5 {[%clk 0:02:38.6]} 11. dxe5
{[%clk 0:02:13.4]} 11... Nxe5 {[%clk 0:02:39.5]} 12. Nxe5 {[%clk 0:02:12.9]}
12... Qxe5 {[%clk 0:02:40.4]} 13. Nf3 {[%clk 0:02:12]} 13... Qh5 {[%clk
0:02:37.9]} 14. Qa4 {[%clk 0:02:10]} 14... c4 {[%clk 0:02:29.1]} 15. Be2 {[%clk
0:02:04]} 15... Ng4 {[%clk 0:02:27.6]} 16. Rfd1 {[%clk 0:01:50.5]} 16... Be6
{[%clk 0:02:24.7]} 17. Rd4 {[%clk 0:01:45]} 17... f5 {[%clk 0:02:23.6]} 18. Qb4
{[%clk 0:01:31.7]} 18... Rf6 {[%clk 0:02:18.9]} 19. Qxb7 {[%clk 0:01:21.5]}
19... Raf8 {[%clk 0:02:18.7]} 20. Rxd5 {[%clk 0:00:48.9]} 20... Rh6 {[%clk
0:02:14.4]} 21. Nh4 {[%clk 0:00:40.2]} 21... g5 {[%clk 0:02:11.1]} 22. Bxg4
{[%clk 0:00:34.5]} 22... fxg4 {[%clk 0:02:11.2]} 23. Re5 {[%clk 0:00:30.8]}
23... Kh8 {[%clk 0:01:43.2]} 24. Rd1 {[%clk 0:00:29.2]} 24... Rhf6 {[%clk
0:01:31.9]} 25. Qe4 {[%clk 0:00:25.3]} 25... Qh6 {[%clk 0:01:29.2]} 26. Rd6
{[%clk 0:00:13.4]} 26... gxh4 {[%clk 0:01:23.2]} 27. Rexe6 {[%clk 0:00:12.4]}
27... hxg3 {[%clk 0:00:50.8]} 28. Rxf6 {[%clk 0:00:12.4]} 28... Rxf6 {[%clk
0:00:46.6]} 29. Qe8+ {[%clk 0:00:06.2]} 29... Qf8 {[%clk 0:00:43.9]} 30. Qxf8+
{[%clk 0:00:06.2]} 30... Rxf8 {[%clk 0:00:44.1]} 31. fxg3 {[%clk 0:00:07.1]}
31... Rb8 {[%clk 0:00:44.3]} 32. Rd2 {[%clk 0:00:06.8]} 32... Re8 {[%clk
0:00:43.8]} 33. Kf2 {[%clk 0:00:07.3]} 33... Rb8 {[%clk 0:00:42.7]} 34. Ke2
{[%clk 0:00:07.6]} 34... Kg7 {[%clk 0:00:42.6]} 35. Kd1 {[%clk 0:00:08.1]} 35...
Kf6 {[%clk 0:00:42.2]} 36. Kc2 {[%clk 0:00:08.7]} 36... Ke5 {[%clk 0:00:42.3]}
37. Rd4 {[%clk 0:00:09.2]} 37... Rf8 {[%clk 0:00:42.5]} 38. Rf4 {[%clk
0:00:09.2]} 38... Rc8 {[%clk 0:00:41]} 39. Rxg4 {[%clk 0:00:09.1]} 39... h5
{[%clk 0:00:41.3]} 40. Rh4 {[%clk 0:00:09.6]} 40... a6 {[%clk 0:00:39.4]} 41.
Rxh5+ {[%clk 0:00:10.1]} 41... Ke4 {[%clk 0:00:39.9]} 42. Ra5 {[%clk 0:00:10.4]}
42... Kxe3 {[%clk 0:00:39.5]} 43. Rxa6 {[%clk 0:00:11]} 1-0

[Event "Early-Titled-Tuesday-Blitz-April-02-2024"]
[Site "Chess.com"]
[Date "2024.04.02"]
[Round "6"]
[White "jk13"]
[Black "sergoy"]
[Result "1/2-1/2"]
[WhiteElo "2713"]
[BlackElo "2887"]
[TimeControl "180+1"]
[EndTime "9:06:42 PDT"]
[Termination "Game drawn by repetition"]

1. e4 {[%clk 0:03:00.9]} 1... c5 {[%clk 0:03:00]} 2. c3 {[%clk 0:03:01.3]} 2...
Nf6 {[%clk 0:02:59.8]} 3. e5 {[%clk 0:03:01.8]} 3... Nd5 {[%clk 0:03:00.5]} 4.
Bc4 {[%clk 0:03:02.4]} 4... e6 {[%clk 0:03:00.6]} 5. Nf3 {[%clk 0:03:02.1]} 5...
d6 {[%clk 0:03:01.1]} 6. d4 {[%clk 0:03:02.6]} 6... cxd4 {[%clk 0:03:01.3]} 7.
cxd4 {[%clk 0:03:03.5]} 7... Nc6 {[%clk 0:03:00.9]} 8. Qe2 {[%clk 0:03:02.8]}
8... Be7 {[%clk 0:02:59.9]} 9. O-O {[%clk 0:03:03]} 9... O-O {[%clk 0:03:00.1]}
10. a3 {[%clk 0:03:02.4]} 10... Bd7 {[%clk 0:02:53.8]} 11. Rd1 {[%clk
0:02:50.5]} 11... Qc7 {[%clk 0:02:49.4]} 12. Bd3 {[%clk 0:02:49.3]} 12... Rac8
{[%clk 0:02:42.9]} 13. Bd2 {[%clk 0:02:45.4]} 13... Qb6 {[%clk 0:02:38.1]} 14.
Bc3 {[%clk 0:02:04.4]} 14... dxe5 {[%clk 0:02:29.9]} 15. dxe5 {[%clk 0:01:59.6]}
15... Rfd8 {[%clk 0:02:29.5]} 16. Qe4 {[%clk 0:01:54.6]} 16... g6 {[%clk
0:02:29.8]} 17. Qe2 {[%clk 0:00:39.1]} 17... Be8 {[%clk 0:02:28.1]} 18. Be4
{[%clk 0:00:35.7]} 18... Nf4 {[%clk 0:02:19.7]} 19. Qf1 {[%clk 0:00:36]} 19...
Bc5 {[%clk 0:02:07.8]} 20. Nbd2 {[%clk 0:00:35.8]} 20... Nd4 {[%clk 0:01:57.1]}
21. Nxd4 {[%clk 0:00:21.8]} 21... Bxd4 {[%clk 0:01:54.8]} 22. Nc4 {[%clk
0:00:20.4]} 22... Bxf2+ {[%clk 0:01:43.3]} 23. Kh1 {[%clk 0:00:20.3]} 23... Rxd1
{[%clk 0:00:56.1]} 24. Rxd1 {[%clk 0:00:19.7]} 24... Qb3 {[%clk 0:00:43.5]} 25.
Nd6 {[%clk 0:00:15.6]} 25... Rd8 {[%clk 0:00:42.7]} 26. Rc1 {[%clk 0:00:10]}
26... Qb6 {[%clk 0:00:35.2]} 27. Nc4 {[%clk 0:00:09.3]} 27... Bb5 {[%clk
0:00:24.1]} 28. Nxb6 {[%clk 0:00:08.3]} 28... Bxf1 {[%clk 0:00:24.2]} 29. Rxf1
{[%clk 0:00:08.8]} 29... axb6 {[%clk 0:00:23.4]} 30. g3 {[%clk 0:00:07]} 30...
Nh3 {[%clk 0:00:15]} 31. Kg2 {[%clk 0:00:07.4]} 31... Ng5 {[%clk 0:00:15.6]} 32.
Bxb7 {[%clk 0:00:05.3]} 32... Bc5 {[%clk 0:00:08.3]} 33. h4 {[%clk 0:00:05.4]}
33... Rd7 {[%clk 0:00:08.7]} 34. Bc6 {[%clk 0:00:04.9]} 34... Rc7 {[%clk
0:00:08.7]} 35. Ba8 {[%clk 0:00:05.1]} 35... Ra7 {[%clk 0:00:08.7]} 36. Bc6
{[%clk 0:00:05.1]} 36... Rc7 {[%clk 0:00:08.9]} 37. Ba8 {[%clk 0:00:05.2]} 37...
Ra7 {[%clk 0:00:09.2]} 38. Bc6 {[%clk 0:00:05.4]} 38... Rc7 {[%clk 0:00:09.6]}
1/2-1/2

[Event "Early-Titled-Tuesday-Blitz-April-02-2024"]
[Site "Chess.com"]
[Date "2024.04.02"]
[Round "6"]
[White "KarolKacprzak"]
[Black "jcibarra"]
[Result "0-1"]
[WhiteElo "2737"]
[BlackElo "2970"]
[TimeControl "180+1"]
[EndTime "9:06:47 PDT"]
[Termination "jcibarra won on time"]

1. e4 {[%clk 0:03:00.9]} 1... c5 {[%clk 0:02:59.9]} 2. Nf3 {[%clk 0:03:01]} 2...
e6 {[%clk 0:03:00.6]} 3. d4 {[%clk 0:03:01.1]} 3... cxd4 {[%clk 0:03:01.5]} 4.
Nxd4 {[%clk 0:03:01.1]} 4... Bc5 {[%clk 0:03:02.2]} 5. Nb3 {[%clk 0:02:59.3]}
5... Bb6 {[%clk 0:03:02.9]} 6. Nc3 {[%clk 0:02:50.7]} 6... Ne7 {[%clk
0:03:03.5]} 7. Bd3 {[%clk 0:02:41.2]} 7... O-O {[%clk 0:03:04]} 8. O-O {[%clk
0:02:41.3]} 8... f5 {[%clk 0:03:04.7]} 9. Kh1 {[%clk 0:02:31.6]} 9... f4 {[%clk
0:03:04.8]} 10. a4 {[%clk 0:02:11.2]} 10... Nbc6 {[%clk 0:03:05.1]} 11. Bd2
{[%clk 0:02:00.9]} 11... Ng6 {[%clk 0:03:05]} 12. Qh5 {[%clk 0:01:51.1]} 12...
Nce5 {[%clk 0:03:03.8]} 13. a5 {[%clk 0:01:49.3]} 13... Bc7 {[%clk 0:03:03.7]}
14. Nb5 {[%clk 0:01:45.9]} 14... Bb8 {[%clk 0:03:03.9]} 15. Be2 {[%clk
0:01:35.5]} 15... a6 {[%clk 0:03:02.4]} 16. N5d4 {[%clk 0:01:32.2]} 16... d6
{[%clk 0:02:55.4]} 17. Rad1 {[%clk 0:01:18]} 17... Ba7 {[%clk 0:02:53.3]} 18.
Bc3 {[%clk 0:01:13.8]} 18... Qe7 {[%clk 0:02:52.6]} 19. Nf3 {[%clk 0:01:13.8]}
19... Nxf3 {[%clk 0:02:40.2]} 20. Bxf3 {[%clk 0:01:14.7]} 20... e5 {[%clk
0:02:39.1]} 21. Bg4 {[%clk 0:01:11]} 21... f3 {[%clk 0:02:33.8]} 22. g3 {[%clk
0:01:09.2]} 22... Bxg4 {[%clk 0:02:28.9]} 23. Qxg4 {[%clk 0:01:10.1]} 23... Rac8
{[%clk 0:02:28.5]} 24. Rd3 {[%clk 0:01:05.6]} 24... Rc6 {[%clk 0:02:27.4]} 25.
Rxf3 {[%clk 0:01:02.3]} 25... Rfc8 {[%clk 0:02:18.6]} 26. Rd1 {[%clk 0:00:59.3]}
26... Nf8 {[%clk 0:02:10.1]} 27. Kg2 {[%clk 0:00:57.4]} 27... Nd7 {[%clk
0:02:10.2]} 28. Rfd3 {[%clk 0:00:55.1]} 28... Nf6 {[%clk 0:02:09.8]} 29. Qe2
{[%clk 0:00:53.7]} 29... Qe6 {[%clk 0:02:05.2]} 30. f3 {[%clk 0:00:49.8]} 30...
h6 {[%clk 0:02:02.3]} 31. R1d2 {[%clk 0:00:48.5]} 31... Nh7 {[%clk 0:02:01.9]}
32. h4 {[%clk 0:00:41.8]} 32... Nf6 {[%clk 0:02:01.3]} 33. Bb4 {[%clk
0:00:40.6]} 33... Bb8 {[%clk 0:02:00.9]} 34. Nc1 {[%clk 0:00:34.4]} 34... Nh5
{[%clk 0:02:00]} 35. Qd1 {[%clk 0:00:29.2]} 35... Qg6 {[%clk 0:01:59.9]} 36. Ne2
{[%clk 0:00:28.9]} 36... Nf4+ {[%clk 0:01:34.6]} 37. Nxf4 {[%clk 0:00:29]} 37...
exf4 {[%clk 0:01:35.5]} 38. g4 {[%clk 0:00:29.8]} 38... Qf6 {[%clk 0:01:36.2]}
39. c3 {[%clk 0:00:17.7]} 39... Qxh4 {[%clk 0:01:35.2]} 40. Qh1 {[%clk
0:00:11.8]} 40... Qf6 {[%clk 0:01:18.9]} 41. Qh5 {[%clk 0:00:12.3]} 41... Bc7
{[%clk 0:01:13.8]} 42. Qd5+ {[%clk 0:00:09]} 42... Kh8 {[%clk 0:01:13.6]} 43.
Qf5 {[%clk 0:00:08.7]} 43... Rf8 {[%clk 0:00:53.4]} 44. Qxf6 {[%clk 0:00:09]}
44... Rxf6 {[%clk 0:00:54.3]} 45. Rd5 {[%clk 0:00:08.9]} 45... Kg8 {[%clk
0:00:54.3]} 46. Kf1 {[%clk 0:00:03.9]} 46... Kf7 {[%clk 0:00:53.7]} 47. Ke2
{[%clk 0:00:02.6]} 47... Re6 {[%clk 0:00:53.5]} 48. Kd3 {[%clk 0:00:02.7]} 48...
Re5 {[%clk 0:00:50]} 49. Kc2 {[%clk 0:00:02.5]} 49... Ke6 {[%clk 0:00:48.7]} 50.
Rxe5+ {[%clk 0:00:01.7]} 50... dxe5 {[%clk 0:00:47.8]} 51. Re2 {[%clk
0:00:01.3]} 51... Bb8 {[%clk 0:00:39.3]} 52. Kb3 {[%clk 0:00:01.4]} 52... Rc8
{[%clk 0:00:39.7]} 0-1